bitfinex-derivatives/quotes_SOLF0:USTF0_20240911
["timestamp","ask_amount","ask_price","bid_price","bid_amount"]
[1726080839532,3.785,132.08,132.02,1.3912]
[1726080840128,6.57975819,132.13,132.02,1.3912]
[1726080840129,3.7847,132.09,132.03,29.07]
[1726080841535,3.7845,132.1,132.03,29.07]
[1726080841739,29.07,132.16,132.05,29.07]
[1726080842035,2.7582,132.18,132.07,29.07]
[1726080842244,2.7582,132.18,132.08,3.85682557]
[1726080842437,2.7582,132.18,132.09,29.07]
[1726080842636,2.7582,132.18,132.1,1.4278]
[1726080842637,1.4193,132.18,132.1,1.4278]
[1726080842833,30.4089,132.21,132.12,3.7837]
[1726080843136,1.3389,132.21,132.11,29.07]
[1726080843329,1.3389,132.21,132.11,32.8538]
[1726080844137,3.783,132.15,132.11,32.8538]
[1726080844539,3.783,132.15,132.12,3.7838]
[1726080844748,1.3389,132.21,132.11,29.07]
[1726080845038,1.3389,132.21,132.12,3.7837]
[1726080845236,3.784,132.12,132.1,2.7605]
[1726080845437,29.07,132.19,132.1,2.7605]
[1726080846246,3.7837,132.13,132.1,2.7605]
[1726080846538,29.07,132.19,132.1,2.7605]
[1726080846740,29.07,132.16,132.1,1.4278]
[1726080846940,29.07,132.16,132.07,3.75662929]
[1726080847144,29.07,132.16,132.08,3.7849]
[1726080847338,29.07,132.16,132.08,3.73732959]
[1726080847540,3.87772543,132.15,132.07,1.3431]
[1726080848545,3.7846,132.1,132.07,1.3431]
[1726080848761,3.87772543,132.15,132.07,1.3431]
[1726080849243,3.7849,132.09,132.07,1.3431]
[1726080849653,3.785,132.08,132.07,1.3431]
[1726080849945,5.25929206,132.15,132.07,1.3431]
[1726080850144,3.7848,132.09,132.07,1.3431]
[1726080850344,5.25929206,132.15,132.07,1.3431]
[1726080850542,5.25929206,132.15,132.08,3.80034516]
[1726080850745,3.7843,132.11,132.08,3.80034516]
[1726080850932,3.81359206,132.15,132.08,3.80034516]
[1726080851134,29.07,132.18,132.08,3.80034516]
[1726080851342,3.7842,132.11,132.08,3.80034516]
[1726080852549,3.7838,132.12,132.07,1.3431]
[1726080852747,3.7838,132.12,132.07,5.22264235]
[1726080853150,3.7838,132.12,132.08,3.7849]
[1726080853341,3.7836,132.13,132.07,5.22264235]
[1726080853737,3.7836,132.13,132.09,3.7845]
[1726080854546,3.7833,132.14,132.08,29.07]
[1726080854853,1.3423,132.19,132.08,29.07]
[1726080855046,1.3423,132.19,132.1,29.07]
[1726080855757,3.7829,132.16,132.12,3.7836]
[1726080855951,1.3423,132.19,132.1,29.07]
[1726080856455,3.7832,132.15,132.11,3.7841]
[1726080856940,1.3423,132.19,132.1,3.7842]
[1726080857146,1.3389,132.21,132.1,29.07]
[1726080857345,1.3389,132.21,132.12,29.07]
[1726080857541,3.7819,132.19,132.13,1.4467]
[1726080857845,3.7819,132.19,132.14,30.471]
[1726080858051,3.7822,132.18,132.14,30.471]
[1726080858254,29.07,132.24,132.14,34.29213994]
[1726080858654,3.782,132.19,132.15,3.7829]
[1726080859350,3.7821,132.18,132.14,38.07523994]
[1726080860352,3.7819,132.19,132.15,3.7829]
[1726080861453,29.07,132.24,132.14,34.29213994]
[1726080862556,29.07,132.24,132.16,3.7825]
[1726080862557,3.7817,132.2,132.16,3.7825]
[1726080863150,3.7814,132.21,132.17,3.7824]
[1726080863851,3.7814,132.21,132.18,3.7821]
[1726080864050,3.7814,132.21,132.16,32.90474057]
[1726080864254,3.7814,132.21,132.17,3.7822]
[1726080864753,3.7816,132.2,132.17,3.7822]
[1726080864947,6.49955163,132.25,132.16,29.07]
[1726080865155,29.07,132.24,132.15,1.3786]
[1726080865549,3.7825,132.17,132.15,1.3786]
[1726080866049,29.07,132.24,132.15,1.3786]
[1726080866755,29.07,132.24,132.15,5.1614]
[1726080867447,3.782,132.19,132.15,5.1614]
[1726080868760,3.7821,132.18,132.15,5.1614]
[1726080868951,3.7821,132.18,132.15,1.3786]
[1726080870361,3.7818,132.2,132.16,3.7826]
[1726080870657,18.16,132.24,132.15,1.3786]
[1726080870955,3.782,132.19,132.15,5.1614]
[1726080871156,3.782,132.19,132.15,1.3786]
[1726080871349,18.16,132.24,132.15,1.3786]
[1726080871553,3.7818,132.2,132.16,3.7825]
[1726080871757,18.16,132.24,132.16,3.7825]
[1726080872152,3.7817,132.2,132.16,3.7825]
[1726080872554,27.52370961,132.26,132.15,1.3786]
[1726080872754,31.27050133,132.29,132.19,18.16]
[1726080872956,31.27050133,132.29,132.2,1.3741]
[1726080873162,31.27050133,132.29,132.21,3.7811]
[1726080873460,3.7801,132.25,132.21,7.52902631]
[1726080874166,3.7804,132.24,132.21,7.52902631]
[1726080874557,3.74679172,132.29,132.21,3.74792631]
[1726080874758,28.93050961,132.3,132.21,3.74792631]
[1726080874959,32.80059335,132.3,132.2,6.5593]
[1726080875159,3.7809,132.23,132.2,6.5593]
[1726080875361,18.16,132.29,132.2,2.7779]
[1726080875563,45.68370961,132.29,132.2,2.7779]
[1726080875762,3.7807,132.23,132.2,2.7779]
[1726080876162,3.7807,132.23,132.2,6.5593]
[1726080876764,3.7805,132.24,132.2,2.7779]
[1726080877160,45.68370961,132.29,132.21,3.6999103]
[1726080878169,3.7809,132.23,132.21,3.6999103]
[1726080878774,18.16,132.27,132.2,2.7779]
[1726080879769,3.7807,132.23,132.2,2.7779]
[1726080879968,3.7807,132.23,132.2,6.5593]
[1726080880173,18.16,132.27,132.2,2.7779]
[1726080880369,18.16,132.27,132.21,3.71531457]
[1726080881174,27.52370961,132.29,132.2,20.9379]
[1726080881373,18.16,132.28,132.21,3.73913554]
[1726080881579,18.16,132.28,132.2,2.7779]
[1726080882174,18.16,132.28,132.2,1.3741]
[1726080883277,3.7811,132.22,132.2,1.3741]
[1726080888378,18.16,132.26,132.16,1.3056]
[1726080888589,35.08170961,132.29,132.16,1.3056]
[1726080888590,18.16,132.23,132.16,1.3056]
[1726080888884,21.88741411,132.23,132.16,1.3056]
[1726080889072,3.7823,132.18,132.16,1.3056]
[1726080890275,3.7818,132.19,132.16,5.0882]
[1726080894886,27.52370961,132.27,132.17,3.7822]
[1726080895089,27.52370961,132.27,132.16,1.3056]
[1726080895090,18.16,132.25,132.16,1.3056]
[1726080895989,3.7818,132.19,132.16,5.0881]
[1726080897080,3.7823,132.18,132.16,1.3056]
[1726080897693,18.16,132.21,132.14,3.77043103]
[1726080897994,18.16,132.21,132.11,18.16]
[1726080898185,18.16,132.19,132.12,3.76948229]
[1726080898379,18.16,132.19,132.08,4.1301]
[1726080898380,18.16,132.19,132.08,22.2901]
[1726080898581,18.16,132.19,132.09,18.16]
[1726080898788,3.7832,132.15,132.1,3.7842]
[1726080898988,18.16,132.19,132.1,3.7842]
[1726080899189,6.49801083,132.18,132.1,3.7842]
[1726080899388,6.49801083,132.17,132.1,3.7842]
[1726080899590,18.16,132.19,132.09,25.81923141]
[1726080899990,3.7844,132.1,132.09,3.87463141]
[1726080900210,18.16,132.19,132.08,22.2901]
[1726080900389,19.5524,132.2,132.09,18.16]
[1726080900589,6.49766795,132.18,132.09,22.00497714]
[1726080900789,6.49766795,132.19,132.09,22.00497714]
[1726080900991,6.49766795,132.18,132.12,18.16]
[1726080901192,3.7826,132.17,132.13,3.7834]
[1726080901385,3.7826,132.17,132.12,18.16]
[1726080901586,1.3924,132.2,132.12,18.16]
[1726080901790,6.49877903,132.19,132.12,18.16]
[1726080902104,6.49877903,132.18,132.12,18.16]
[1726080902395,1.3924,132.2,132.12,18.16]
[1726080902587,6.49522279,132.19,132.12,18.16]
[1726080902789,3.7829,132.16,132.12,21.9438]
[1726080902989,1.3924,132.2,132.12,18.16]
[1726080903190,6.49501335,132.19,132.12,18.16]
[1726080903386,3.7826,132.17,132.13,3.7835]
[1726080903795,18.16,132.21,132.12,18.16]
[1726080904094,3.7829,132.16,132.12,18.16]
[1726080904302,18.16,132.21,132.12,18.16]
[1726080904598,6.49445099,132.2,132.12,18.16]
[1726080904897,6.49445099,132.19,132.12,18.16]
[1726080905091,6.49445099,132.18,132.12,18.16]
[1726080905397,6.49445099,132.17,132.1,18.16]
[1726080905614,18.16,132.19,132.1,18.16]
[1726080905796,18.16,132.19,132.11,3.784]
[1726080905995,6.49347637,132.18,132.1,3.85347464]
[1726080906190,18.16,132.16,132.08,4.1301]
[1726080906391,6.49347637,132.15,132.08,4.1301]
[1726080906590,6.49347637,132.14,132.08,4.1301]
[1726080906897,18.16,132.16,132.08,4.1301]
[1726080907084,24.65180618,132.15,132.08,2.7772]
[1726080907285,6.49180618,132.14,132.03,23.2793]
[1726080907497,18.16,132.12,132.03,22.2385]
[1726080907696,6.49024935,132.11,132.03,6.43245075]
[1726080907906,3.7854,132.07,132.03,10.21875075]
[1726080908089,3.7854,132.07,132.03,6.43245075]
[1726080908287,3.7849,132.09,132.05,3.7858]
[1726080908492,18.16,132.12,132.03,24.59245075]
[1726080908693,6.48831614,132.11,132.03,24.59245075]
[1726080908898,3.7846,132.1,132.05,3.7858]
[1726080909087,18.16,132.12,132.05,3.7858]
[1726080909290,6.48703054,132.11,132.03,24.59245075]
[1726080909505,18.16,132.12,132.03,24.59245075]
[1726080909698,6.48646002,132.1,132.04,3.7859]
[1726080909895,18.16,132.12,132.04,3.7859]
[1726080910097,6.48551574,132.11,132.04,3.7859]
[1726080910296,6.48551574,132.1,132.06,3.7854]
[1726080910495,18.16,132.14,132.05,18.16]
[1726080910805,6.48625234,132.13,132.05,18.16]
[1726080910990,3.7842,132.11,132.06,3.7853]
[1726080911321,18.16,132.14,132.06,3.7853]
[1726080911595,3.784,132.12,132.08,3.785]
[1726080911787,3.784,132.12,132.07,18.16]
[1726080911993,1.3665,132.15,132.07,18.16]
[1726080912190,6.48766975,132.14,132.06,18.16]
[1726080912506,6.48766975,132.13,132.06,18.16]
[1726080912799,1.3665,132.15,132.08,3.7849]
[1726080912998,6.48765824,132.14,132.08,3.7849]
[1726080913199,3.784,132.12,132.08,3.7849]
[1726080913608,18.16,132.19,132.09,18.16]
[1726080913905,3.7837,132.13,132.09,18.16]
[1726080914197,18.16,132.19,132.09,18.16]
[1726080914402,6.4887138,132.17,132.1,19.5385]
[1726080914604,6.4887138,132.16,132.12,3.7838]
[1726080914804,3.7826,132.17,132.12,3.7838]
[1726080914991,19.4847,132.21,132.11,2.6647]
[1726080915196,6.49028888,132.2,132.11,2.6647]
[1726080915398,3.7827,132.16,132.11,2.6647]
[1726080915595,19.4847,132.21,132.12,18.16]
[1726080915803,1.3951,132.22,132.12,18.16]
[1726080916006,6.49137409,132.2,132.12,18.16]
[1726080916204,6.49137409,132.19,132.13,3.7835]
[1726080916394,10.27367409,132.18,132.13,3.7835]
[1726080916709,1.3951,132.22,132.12,18.16]
[1726080916907,3.7826,132.17,132.12,18.16]
[1726080917298,1.3951,132.22,132.12,18.16]
[1726080917497,3.7818,132.2,132.12,18.16]
[1726080917702,6.49183317,132.19,132.12,18.16]
[1726080917899,6.49281165,132.18,132.12,18.16]
[1726080918095,1.3951,132.22,132.12,18.16]
[1726080918300,6.49343821,132.21,132.12,18.16]
[1726080918506,6.49343821,132.2,132.12,18.16]
[1726080918702,6.49343821,132.19,132.12,18.16]
[1726080918911,19.527,132.25,132.14,18.16]
[1726080919121,6.49426182,132.24,132.14,18.16]
[1726080919403,6.49451561,132.23,132.16,18.16]
[1726080919607,6.49451561,132.22,132.18,18.16]
[1726080919803,18.16,132.27,132.17,4.1385]
[1726080920013,6.49479588,132.22,132.17,11.70237792]
[1726080920303,6.49479588,132.21,132.17,11.70237792]
[1726080920602,18.16,132.27,132.18,3.7821]
[1726080920799,6.49544859,132.26,132.18,3.7821]
[1726080920994,3.7808,132.23,132.18,3.7821]
[1726080921201,6.49544859,132.22,132.18,3.7821]
[1726080921803,6.49544859,132.22,132.19,3.7817]
[1726080922005,6.49544859,132.22,132.17,6.54387792]
[1726080922312,6.49544859,132.21,132.17,1.3843]
[1726080922516,3.7821,132.18,132.17,5.2389716]
[1726080922809,18.16,132.23,132.17,5.1780805]
[1726080923006,3.7818,132.19,132.17,5.1780805]
[1726080924299,3.7821,132.18,132.17,5.1780805]
[1726080924507,18.16,132.23,132.17,5.1780805]
[1726080924708,3.782,132.19,132.17,5.1780805]
[1726080925500,3.7816,132.2,132.17,5.1780805]
[1726080925706,30.26450961,132.28,132.17,5.1780805]
[1726080925707,18.16,132.25,132.17,5.1780805]
[1726080926007,6.49342085,132.24,132.17,8.9602805]
[1726080926203,3.7815,132.21,132.17,5.1780805]
[1726080926404,6.49327823,132.23,132.18,18.16]
[1726080926605,6.49327823,132.22,132.18,19.5216]
[1726080926904,18.16,132.27,132.18,19.5216]
[1726080927110,3.7809,132.23,132.19,3.7816]
[1726080927305,6.4941993,132.22,132.19,3.7816]
[1726080927504,3.7809,132.23,132.18,19.5216]
[1726080927700,6.4943211,132.22,132.18,19.5216]
[1726080927907,3.7809,132.23,132.18,19.5216]
[1726080928209,6.49391987,132.22,132.19,3.7816]
[1726080928523,3.7809,132.23,132.18,19.5216]
[1726080928811,6.49386002,132.22,132.18,19.5216]
[1726080929013,3.7809,132.23,132.18,19.5216]
[1726080929222,6.50041857,132.22,132.18,19.5216]
[1726080929511,3.7805,132.24,132.2,3.7814]
[1726080929712,6.50337843,132.23,132.2,3.7814]
[1726080929912,6.50337843,132.22,132.2,3.7814]
[1726080930108,3.7805,132.24,132.2,3.7814]
[1726080930509,6.50467344,132.23,132.18,19.5216]
[1726080930714,3.7805,132.24,132.21,3.7812]
[1726080931008,6.50484749,132.23,132.2,18.16]
[1726080931214,48.41981019,132.33,132.22,18.16]
[1726080931215,6.57234613,132.33,132.22,18.16]
[1726080931411,3.78,132.26,132.22,18.16]
[1726080931608,3.78,132.26,132.21,1.3988]
[1726080932003,3.7801,132.25,132.21,1.3988]
[1726080932312,18.16,132.31,132.21,1.3988]
[1726080932512,3.78,132.26,132.22,3.781]
[1726080933012,6.57234613,132.33,132.21,1.3988]
[1726080933013,18.16,132.29,132.21,3.7811]
[1726080933710,18.16,132.29,132.22,3.7809]
[1726080933911,18.16,132.29,132.2,22.00916572]
[1726080934309,18.16,132.29,132.21,3.7808]
[1726080934818,3.7799,132.25,132.22,3.7805]
[1726080935012,18.16,132.29,132.2,22.00916572]
[1726080935406,18.16,132.29,132.22,3.7806]
[1726080935706,18.16,132.31,132.2,22.00916572]
[1726080935911,18.16,132.31,132.22,18.16]
[1726080936114,3.7793,132.27,132.24,3.78]
[1726080936308,1.0303,132.32,132.24,3.85245077]
[1726080936512,1.0303,132.32,132.23,1.4015]
[1726080937120,1.0303,132.32,132.23,5.13525098]
[1726080937315,24.73234613,132.33,132.25,3.7796]
[1726080937516,24.73234613,132.33,132.23,5.13525098]
[1726080937517,18.16,132.31,132.23,5.13525098]
[1726080938114,3.7794,132.26,132.23,8.91555098]
[1726080938413,1.0303,132.32,132.24,3.7798]
[1726080938812,1.0303,132.32,132.23,23.29525098]
[1726080939010,1.0303,132.32,132.25,3.7797]
[1726080939417,1.0303,132.32,132.23,5.13525098]
[1726080939617,18.16,132.3,132.22,3.86568163]
[1726080939807,18.16,132.3,132.2,1.4268]
[1726080940312,18.16,132.3,132.2,5.1212364]
[1726080941021,3.7801,132.24,132.2,8.9022364]
[1726080942024,1.0303,132.32,132.2,8.9022364]
[1726080942025,18.16,132.31,132.2,23.2812364]
[1726080942225,18.16,132.31,132.2,5.1212364]
[1726080942518,3.7799,132.25,132.21,18.16]
[1726080942914,18.16,132.3,132.21,18.16]
[1726080943107,3.7795,132.26,132.21,18.16]
[1726080943312,18.16,132.3,132.21,18.16]
[1726080943509,3.7793,132.27,132.22,3.7804]
[1726080943912,18.16,132.29,132.2,5.1212364]
[1726080944114,3.7801,132.24,132.2,23.2812364]
[1726080944518,18.16,132.29,132.2,23.2812364]
[1726080945224,18.16,132.29,132.21,3.7808]
[1726080945420,18.16,132.29,132.2,5.1212364]
[1726080945724,3.7801,132.24,132.2,5.1212364]
[1726080946623,18.16,132.29,132.21,18.16]
[1726080947013,18.16,132.29,132.2,5.1212364]
[1726080947620,3.7799,132.25,132.2,8.9022364]
[1726080948124,18.16,132.29,132.2,8.9022364]
[1726080948125,18.16,132.29,132.2,5.1212364]
[1726080948320,3.7795,132.26,132.21,18.16]
[1726080949227,3.7795,132.26,132.21,21.9408]
[1726080949625,1.0303,132.32,132.26,3.7792]
[1726080949828,1.0303,132.32,132.2,5.1212364]
[1726080950026,19.1903,132.32,132.2,5.1212364]
[1726080950222,3.7794,132.27,132.21,18.16]
[1726080950525,3.7794,132.27,132.22,3.7805]
[1726080951224,3.7794,132.27,132.23,21.9401]
[1726080951614,3.7798,132.25,132.21,3.7807]
[1726080951847,19.1903,132.32,132.21,18.16]
[1726080952235,3.7798,132.25,132.21,21.9408]
[1726080952718,19.1903,132.32,132.21,21.9408]
[1726080953027,3.7797,132.26,132.21,21.9408]
[1726080953525,3.7792,132.27,132.22,3.7805]
[1726080954117,3.7792,132.27,132.23,3.7802]
[1726080954322,3.7792,132.27,132.21,18.16]
[1726080954720,3.779,132.28,132.21,18.16]
[1726080954922,19.1903,132.32,132.23,18.16]
[1726080955725,3.7791,132.28,132.24,3.7798]
[1726080957133,19.1903,132.32,132.2,5.1212364]
[1726080957432,18.16,132.3,132.2,5.1212364]
[1726080957728,3.7797,132.26,132.21,3.7808]
[1726080957929,3.7797,132.26,132.2,5.1212364]
[1726080958718,3.7797,132.26,132.22,3.7806]
[1726080959435,3.7797,132.26,132.21,3.7808]
[1726080960229,18.16,132.3,132.21,18.16]
[1726080960426,1.0303,132.32,132.23,18.16]
[1726080960427,19.1903,132.32,132.23,18.16]
[1726080961728,19.1903,132.32,132.23,21.9401]
[1726080962333,19.1903,132.32,132.23,18.16]
[1726080962638,18.16,132.32,132.23,18.16]
[1726080962828,2.7833,132.33,132.23,18.16]
[1726080963136,2.7833,132.33,132.2,23.2812364]
[1726080963137,1.4031,132.33,132.25,18.16]
[1726080963433,18.16,132.36,132.27,18.16]
[1726080963624,1.4372,132.37,132.29,18.16]
[1726080963832,1.4372,132.37,132.29,21.92947217]
[1726080964033,3.7771,132.35,132.29,21.92947217]
[1726080964231,1.4006,132.39,132.31,18.16]
[1726080964735,1.4006,132.39,132.32,3.7777]
[1726080965136,1.4006,132.39,132.31,18.16]
[1726080965137,3.7765,132.37,132.33,3.7774]
[1726080965640,1.4006,132.39,132.31,18.16]
[1726080966029,3.7768,132.36,132.31,18.16]
[1726080966226,18.16,132.41,132.33,18.16]
[1726080966435,27.52370961,132.42,132.33,18.16]
[1726080966639,3.776,132.38,132.34,3.7769]
[1726080966939,3.776,132.38,132.33,21.86610355]
[1726080967140,3.776,132.38,132.34,3.7771]
[1726080967634,45.68370961,132.42,132.34,3.7771]
[1726080967843,3.7757,132.39,132.35,3.7768]
[1726080968051,45.68370961,132.42,132.33,21.86610355]
[1726080968237,3.7759,132.39,132.35,3.7768]
[1726080969137,3.7755,132.4,132.36,3.7765]
[1726080969936,27.52370961,132.42,132.35,18.16]
[1726080969937,3.7752,132.41,132.37,3.7763]
[1726080970134,3.7752,132.41,132.37,21.9363]
[1726080970439,27.52370961,132.42,132.37,18.16]
[1726080971056,1.3496,132.45,132.37,18.16]
[1726080971343,3.7753,132.41,132.37,21.9361]
[1726080971831,1.3496,132.45,132.37,18.16]
[1726080972037,3.80606111,132.47,132.38,18.16]
[1726080972239,18.16,132.48,132.38,18.16]
[1726080972637,18.16,132.48,132.4,3.7754]
[1726080972942,18.16,132.48,132.38,18.16]
[1726080973135,3.7745,132.44,132.4,3.7752]
[1726080973339,3.82635722,132.48,132.4,21.94898455]
[1726080973635,20.4939,132.5,132.41,1.3274]
[1726080973943,24.31006467,132.5,132.42,3.7747]
[1726080974135,20.4939,132.5,132.42,3.7747]
[1726080974736,20.4939,132.5,132.42,7.63842989]
[1726080975242,3.7742,132.45,132.42,3.86372989]
[1726080975433,3.7742,132.45,132.41,6.4736]
[1726080975634,3.7738,132.46,132.41,6.48796205]
[1726080975835,3.7738,132.46,132.42,18.16]
[1726080976239,3.7738,132.46,132.43,3.7745]
[1726080976445,3.7741,132.45,132.42,18.16]
[1726080976841,1.3065,132.5,132.41,11.60086205]
[1726080977045,3.7742,132.45,132.41,11.60086205]
[1726080977237,1.3065,132.5,132.41,7.82586205]
[1726080977440,1.3065,132.5,132.42,18.16]
[1726080977744,3.774,132.45,132.42,18.16]
[1726080979143,18.16,132.47,132.41,3.78936205]
[1726080979342,18.16,132.47,132.37,18.16]
[1726080979849,3.7748,132.43,132.4,3.7754]
[1726080980057,3.7748,132.43,132.4,7.59382968]
[1726080980241,3.7744,132.44,132.4,3.81842968]
[1726080980441,3.7744,132.44,132.38,18.16]
[1726080980751,3.7744,132.44,132.4,3.7753]
[1726080980946,3.7746,132.43,132.4,7.55144949]
[1726080981250,18.16,132.49,132.41,3.7751]
[1726080981551,3.7743,132.45,132.41,6.5207]
[1726080982049,3.7743,132.45,132.41,10.23720422]
[1726080982851,3.7743,132.45,132.42,3.7748]
[1726080983749,3.7743,132.45,132.41,11.64240422]
[1726080984052,3.7744,132.44,132.41,11.64240422]
[1726080984645,3.7744,132.44,132.41,7.86740422]
[1726080985851,3.7744,132.44,132.41,11.64250422]
[1726080989045,19.4665,132.5,132.41,11.64250422]
[1726080989046,19.4665,132.5,132.42,3.7747]
[1726080989653,19.4665,132.5,132.41,11.64240422]
[1726080990348,3.7742,132.45,132.41,11.64240422]
[1726080990851,3.7743,132.44,132.41,11.64240422]
[1726080991254,3.7741,132.45,132.42,3.7748]
[1726080991856,3.7743,132.44,132.41,11.64250422]
[1726080992242,19.4665,132.5,132.41,7.86740422]
[1726080992448,1.4014,132.52,132.42,18.16]
[1726080992647,1.4014,132.52,132.44,18.16]
[1726080993050,3.7733,132.48,132.44,21.934]
[1726080993252,1.4014,132.52,132.44,18.16]
[1726080993555,3.7726,132.5,132.46,21.9336]
[1726080993953,3.7726,132.5,132.46,18.16]
[1726080994150,3.7724,132.51,132.46,18.16]
[1726080994381,3.7724,132.51,132.47,2.7932]
[1726080994566,3.7724,132.51,132.47,6.5665]
[1726080994753,3.7724,132.51,132.47,2.7932]
[1726080994962,47.01550961,132.57,132.47,2.7932]
[1726080995155,47.01550961,132.57,132.48,3.773]
[1726080995458,47.01550961,132.57,132.47,2.7932]
[1726080995459,3.7719,132.53,132.47,2.7932]
[1726080995756,19.4918,132.57,132.49,3.7728]
[1726080995950,19.4918,132.57,132.49,3.7946354]
[1726080996153,19.4918,132.57,132.48,18.16]
[1726080996345,19.4918,132.57,132.48,21.933]
[1726080996555,3.7723,132.52,132.48,21.933]
[1726080996756,3.7723,132.52,132.48,21.93952924]
[1726080996951,3.7725,132.51,132.48,21.93952924]
[1726080998658,3.7726,132.5,132.48,3.77952924]
[1726080998864,3.7726,132.5,132.47,20.9532]
[1726080999651,3.7725,132.51,132.47,20.9532]
[1726080999864,18.16,132.55,132.47,24.7266]
[1726081000260,3.7726,132.5,132.47,20.9532]
[1726081001164,3.7726,132.5,132.47,24.7266]
[1726081001368,3.7726,132.5,132.47,20.9532]
[1726081002152,3.7724,132.51,132.47,24.7266]
[1726081002359,255.52370961,132.58,132.48,18.16]
[1726081002558,28.92090961,132.6,132.5,18.16]
[1726081002762,3.7719,132.53,132.5,18.16]
[1726081002961,45.68370961,132.59,132.47,2.7932]
[1726081003163,18.16,132.54,132.42,1.318]
[1726081003363,3.7739,132.46,132.42,23.2527]
[1726081003563,18.16,132.52,132.42,23.23838445]
[1726081003768,3.7742,132.45,132.42,27.01328445]
[1726081004965,3.7738,132.46,132.43,3.7745]
[1726081005370,3.7919,132.53,132.42,23.23838445]
[1726081005574,3.7733,132.48,132.44,18.16]
[1726081006062,3.7733,132.48,132.44,21.9341]
[1726081007162,3.7733,132.48,132.44,18.16]
[1726081007770,3.773,132.49,132.45,3.7739]
[1726081007972,3.7919,132.53,132.45,3.7739]
[1726081008164,3.7919,132.53,132.44,18.16]
[1726081008568,2.7652,132.53,132.44,18.16]
[1726081009074,2.7652,132.53,132.45,1.3782]
[1726081010270,3.773,132.49,132.46,3.7736]
[1726081010463,3.773,132.49,132.45,1.3782]
[1726081010464,2.7652,132.53,132.45,1.3782]
[1726081010665,3.7731,132.49,132.46,3.7737]
[1726081011167,2.7652,132.53,132.45,1.3782]
[1726081011372,2.7652,132.53,132.44,18.16]
[1726081011373,6.54303513,132.53,132.44,18.16]
[1726081011579,18.16,132.52,132.42,23.23838445]
[1726081012370,2.7652,132.53,132.44,18.16]
[1726081012765,3.7734,132.48,132.45,3.7739]
[1726081013271,3.7735,132.47,132.45,3.7739]
[1726081013469,3.7735,132.47,132.44,21.9341]
[1726081014875,3.7733,132.48,132.45,3.774]
[1726081015969,18.16,132.48,132.42,3.76038445]
[1726081016160,18.16,132.46,132.4,1.3731]
[1726081016366,3.7752,132.41,132.4,3.7410442]
[1726081016577,18.16,132.46,132.38,1.4315]
[1726081016769,19.5607,132.46,132.37,188.42445351]
[1726081018877,3.7754,132.41,132.37,192.20055351]
[1726081019075,3.7754,132.41,132.37,188.42445351]
[1726081019876,3.7754,132.41,132.37,192.20045351]
[1726081020078,18.16,132.44,132.37,170.26445351]
[1726081020675,3.7757,132.4,132.37,170.26445351]
[1726081020878,18.16,132.42,132.35,1.3456]
[1726081021377,3.7765,132.37,132.35,1.3456]
[1726081021676,18.16,132.42,132.35,1.3456]
[1726081021877,3.7761,132.38,132.35,1.3456]
[1726081022071,18.16,132.42,132.35,1.3456]
[1726081022272,3.7762,132.38,132.35,1.3456]
[1726081022475,18.16,132.42,132.33,3.70610355]
[1726081022683,1.4226,132.41,132.33,3.7772]
[1726081022979,18.16,132.4,132.31,18.16]
[1726081023182,19.5581,132.4,132.31,21.9378]
[1726081023778,19.5581,132.4,132.32,3.7777]